fUSD/lending_fUSD_20251109
["ID","MTS","AMOUNT","RATE_DAILY","PERIOD"]
[393473612,1762704646912,-151.0,0.0001799,2]
[393473614,1762704646922,-232.962515,0.0001799,2]
[393473616,1762704646931,-151.0,0.0001799,2]
[393473618,1762704646940,-151.0,0.0001799,2]
[393473620,1762704646949,-151.0,0.0001799,2]
[393473622,1762704646959,-151.0,0.0001799,2]
[393473624,1762704646968,-151.0,0.0001799,2]
[393473625,1762704646978,-151.0,0.0001799,2]
[393473627,1762704646988,-151.0,0.0001799,2]
[393473629,1762704646997,-151.0,0.0001799,2]
[393473631,1762704647007,-151.0,0.0001799,2]
[393473633,1762704647017,-241.346829,0.0001799,2]
[393473635,1762704647026,-151.0,0.0001799,2]
[393473637,1762704647038,-151.0,0.0001799,2]
[393473640,1762704647052,-151.0,0.0001799,2]
[393473642,1762704647061,-151.0,0.0001799,2]
[393473644,1762704647071,-168.63083,0.0001799,2]
[393473645,1762704647080,-151.0,0.0001799,2]
[393473648,1762704647090,-151.0,0.0001799,2]
[393473651,1762704647099,-151.0,0.0001799,2]
[393473653,1762704647109,-151.0,0.0001799,2]
[393473655,1762704647119,-151.0,0.0001799,2]
[393473657,1762704647129,-151.0,0.0001799,2]
[393473659,1762704647142,-151.0,0.0001799,2]
[393473661,1762704647151,-151.0,0.0001799,2]
[393473663,1762704647161,-161.232217,0.0001799,2]
[393473665,1762704647171,-259.638569,0.0001799,2]
[393473667,1762704647180,-259.638569,0.0001799,2]
[393473669,1762704647189,-259.638569,0.0001799,2]
[393473671,1762704647199,-259.638569,0.0001799,2]
[393473673,1762704647208,-151.0,0.0001799,2]
[393473675,1762704647217,-280.528594,0.0001799,2]
[393473677,1762704647226,-259.638569,0.0001799,2]
[393473679,1762704647236,-259.638569,0.0001799,2]
[393473681,1762704647245,-259.638569,0.0001799,2]
[393473683,1762704647254,-259.638562,0.0001799,2]
[393473685,1762704647265,-151.0,0.0001799,2]
[393473687,1762704647277,-151.0,0.0001799,2]
[393473689,1762704647288,-151.0,0.0001799,2]
[393473691,1762704647298,-151.0,0.0001799,2]
[393473693,1762704647307,-151.0,0.0001799,2]
[393473695,1762704647316,-151.0,0.0001799,2]
[393473697,1762704647326,-153.443058,0.0001799,2]
[393473699,1762704647335,-151.0,0.0001799,2]
[393473701,1762704647346,-151.0,0.0001799,2]
[393473702,1762704647355,-151.0,0.0001799,2]
[393473705,1762704647365,-151.0,0.0001799,2]
[393473706,1762704647375,-203.527445,0.0001799,2]
[393473708,1762704647384,-268.154147,0.0001799,2]
[393473710,1762704647394,-268.154147,0.0001799,2]
[393473712,1762704647403,-151.0,0.0001799,2]
[393473714,1762704647413,-151.0,0.0001799,2]
[393473716,1762704647422,-268.154147,0.0001799,2]
[393473718,1762704647432,-268.154147,0.0001799,2]
[393473720,1762704647441,-268.154147,0.0001799,2]
[393473722,1762704647451,-268.154147,0.0001799,2]
[393473724,1762704647460,-151.0,0.0001799,2]
[393473726,1762704647469,-268.154147,0.0001799,2]
[393473728,1762704647480,-151.0,0.0001799,2]
[393473730,1762704647498,-268.154139,0.0001799,2]
[393473732,1762704647507,-151.0,0.0001799,2]
[393473734,1762704647517,-151.0,0.0001799,2]
[393473736,1762704647527,-288.058997,0.0001799,2]
[393473737,1762704647538,-151.0,0.0001799,2]
[393473738,1762704647548,-151.0,0.0001799,2]
[393473739,1762704647558,-288.058997,0.0001799,2]
[393473740,1762704647568,-288.058997,0.0001799,2]
[393473741,1762704647578,-151.0,0.0001799,2]
[393473752,1762704647720,-288.058997,0.0001799,2]
[393473754,1762704647730,-151.0,0.0001799,2]
[393473756,1762704647740,-158.133195,0.0001799,2]
[393473758,1762704647749,-288.058997,0.0001799,2]
[393473760,1762704647758,-288.058997,0.0001799,2]
[393473762,1762704647768,-151.0,0.0001799,2]
[393473764,1762704647778,-151.0,0.0001799,2]
[393473766,1762704647788,-151.0,0.0001799,2]
[393473768,1762704647798,-288.058997,0.0001799,2]
[393473770,1762704647807,-288.058992,0.0001799,2]
[393473772,1762704647816,-151.0,0.0001799,2]
[393473774,1762704647827,-151.0,0.0001799,2]
[393473776,1762704647836,-157.780969,0.0001799,2]
[393473778,1762704647845,-151.0,0.0001799,2]
[393473780,1762704647854,-176.557812,0.0001799,2]
[393473782,1762704647864,-1099.366518,0.0001799,2]
[393473784,1762704647876,-1099.366518,0.0001799,2]
[393473786,1762704647886,-1099.366518,0.0001799,2]
[393473788,1762704647896,-1099.366518,0.0001799,2]
[393473790,1762704647907,-151.0,0.0001799,2]
[393473792,1762704647917,-151.0,0.0001799,2]
[393473794,1762704647928,-151.0,0.0001799,2]
[393473796,1762704647939,-1099.366518,0.0001799,2]
[393473798,1762704647952,-1099.366518,0.0001799,2]
[393473800,1762704647963,-151.0,0.0001799,2]
[393473802,1762704647975,-151.0,0.0001799,2]
[393473804,1762704647986,-1099.366518,0.0001799,2]
[393473806,1762704647998,-1099.36651,0.0001799,2]
[393473808,1762704648012,-151.0,0.0001799,2]
[393473810,1762704648024,-151.0,0.0001799,2]
[393473812,1762704648034,-188.648086,0.0001799,2]
[393473814,1762704648050,-151.0,0.0001799,2]
[393473816,1762704648059,-151.0,0.0001799,2]
[393473818,1762704648069,-151.0,0.0001799,2]
[393473820,1762704648079,-165.224313,0.0001799,2]
[393473822,1762704648089,-151.0,0.0001799,2]
[393473824,1762704648098,-324.041751,0.0001799,2]
[393473826,1762704648108,-324.041751,0.0001799,2]
[393473829,1762704648119,-324.041751,0.0001799,2]
[393473831,1762704648130,-324.041751,0.0001799,2]
[393473833,1762704648140,-151.0,0.0001799,2]
[393473835,1762704648149,-151.0,0.0001799,2]
[393473837,1762704648158,-324.041751,0.0001799,2]
[393473838,1762704648169,-225.153174,0.0001799,2]
[393473840,1762704648178,-225.153174,0.0001799,2]
[393473842,1762704648188,-324.041751,0.0001799,2]
[393473844,1762704648198,-151.0,0.0001799,2]
[393473846,1762704648208,-151.0,0.0001799,2]
[393473848,1762704648218,-225.153174,0.0001799,2]
[393473850,1762704648227,-324.041751,0.0001799,2]
[393473852,1762704648237,-225.153174,0.0001799,2]
[393473854,1762704648246,-324.041746,0.0001799,2]
[393473856,1762704648256,-151.0,0.0001799,2]
[393473858,1762704648266,-225.153174,0.0001799,2]
[393473860,1762704648285,-225.153174,0.0001799,2]
[393473863,1762704648296,-151.0,0.0001799,2]
[393473865,1762704648306,-151.0,0.0001799,2]
[393473867,1762704648315,-151.0,0.0001799,2]
[393473869,1762704648326,-225.153174,0.0001799,2]
[393473871,1762704648336,-225.153173,0.0001799,2]
[393473873,1762704648345,-151.0,0.0001799,2]
[393473874,1762704648354,-151.0,0.0001799,2]
[393473876,1762704648363,-151.0,0.0001799,2]
[393473878,1762704648372,-159.813094,0.0001799,2]
[393473880,1762704648381,-283.262401,0.0001799,2]
[393473882,1762704648391,-283.262401,0.0001799,2]
[393473884,1762704648400,-151.0,0.0001799,2]
[393473886,1762704648409,-151.0,0.0001799,2]
[393473888,1762704648419,-283.262401,0.0001799,2]
[393473890,1762704648428,-283.262401,0.0001799,2]
[393473892,1762704648438,-283.262401,0.0001799,2]
[393473895,1762704648447,-283.262401,0.0001799,2]
[393473897,1762704648456,-283.262401,0.0001799,2]
[393473898,1762704648465,-283.262407,0.0001799,2]
[393473900,1762704648474,-151.0,0.0001799,2]
[393473902,1762704648484,-151.0,0.0001799,2]
[393473904,1762704648493,-180.071723,0.0001799,2]
[393473907,1762704648503,-151.0,0.0001799,2]
[393473908,1762704648512,-151.0,0.0001799,2]
[393473910,1762704648521,-1450.428361,0.0001799,2]
[393473913,1762704648531,-1450.428361,0.0001799,2]
[393473915,1762704648545,-151.0,0.0001799,2]
[393473916,1762704648554,-151.0,0.0001799,2]
[393473918,1762704648564,-460.38399,0.0001799,2]
[393473920,1762704648573,-1450.428361,0.0001799,2]
[393473922,1762704648583,-460.38399,0.0001799,2]
[393473924,1762704648592,-368.887248,0.0001799,2]
[393473926,1762704648601,-460.38399,0.0001799,2]
[393473928,1762704648611,-1450.428364,0.0001799,2]
[393473930,1762704648621,-151.0,0.0001799,2]
[393473932,1762704648631,-368.887248,0.0001799,2]
[393473933,1762704648640,-151.0,0.0001799,2]
[393473935,1762704648650,-151.0,0.0001799,2]
[393473936,1762704648659,-460.383999,0.0001799,2]
[393473937,1762704648669,-368.887248,0.0001799,2]
[393473938,1762704648678,-151.0,0.0001799,2]
[393473939,1762704648688,-368.887242,0.0001799,2]
[393473940,1762704648697,-151.0,0.0001799,2]
[393473941,1762704648708,-151.0,0.0001799,2]
[393473942,1762704648719,-151.0,0.0001799,2]
[393473943,1762704648730,-151.0,0.0001799,2]
[393473944,1762704648740,-500.0,0.00017998,2]
[393473945,1762704648750,-3256.0,0.00017999,2]
[393473946,1762704648759,-1017.8127,0.00017999,2]
[393473947,1762704648770,-8746.41712849,0.00017999,2]
[393473948,1762704648780,-209.512811,0.00017999,2]
[393473949,1762704648793,-151.0,0.00017999,2]
[393473950,1762704648802,-151.0,0.00017999,2]
[393473951,1762704648812,-151.0,0.00017999,2]
[393473952,1762704648822,-161.098286,0.00017999,2]
[393473953,1762704648831,-151.0,0.00017999,2]
[393473954,1762704648841,-156.767732,0.00017999,2]
[393473955,1762704648851,-170.560163,0.00017999,2]
[393473956,1762704648860,-300.0,0.00017999,3]
[393473957,1762704648870,-300.0,0.00017999,3]
[393473958,1762704648880,-300.0,0.00017999,3]
[393473959,1762704648889,-300.0,0.00017999,3]
[393473960,1762704648900,-300.0,0.00017999,3]
[393473961,1762704648910,-152.200048,0.00017999,2]
[393473962,1762704648919,-151.0,0.00017999,2]
[393473963,1762704648929,-151.0,0.00017999,2]
[393473964,1762704648938,-169.662431,0.00017999,2]
[393473965,1762704648948,-151.0,0.00017999,2]
[393473966,1762704648958,-151.0,0.00017999,2]
[393473967,1762704648967,-151.0,0.00017999,2]
[393473968,1762704648977,-151.0,0.00017999,2]
[393473969,1762704648986,-168.329479,0.00017999,2]
[393473970,1762704648996,-151.0,0.00017999,2]
[393473971,1762704649005,-151.0,0.00017999,2]
[393473972,1762704649014,-170.269984,0.00017999,2]
[393473973,1762704649024,-170.269984,0.00017999,2]
[393473974,1762704649033,-170.269984,0.00017999,2]
[393473975,1762704649044,-170.269993,0.00017999,2]
[393473976,1762704649054,-169.22698,0.00017999,2]
[393473977,1762704649063,-151.0,0.00017999,2]
[393473978,1762704649072,-151.0,0.00017999,2]
[393473979,1762704649083,-151.0,0.00017999,2]
[393473980,1762704649094,-151.0,0.00017999,2]
[393473981,1762704649103,-151.0,0.00017999,2]
[393473982,1762704649113,-500.0,0.00017999,2]
[393473983,1762704649124,-300.0,0.00017999,2]
[393473984,1762704649133,-209.18505361,0.00017999,2]
[393473985,1762704649148,-151.0,0.00017999,2]
[393473986,1762704649161,-151.0,0.00017999,2]
[393473987,1762704649171,-151.0,0.00017999,2]
[393473988,1762704649181,-151.0,0.00017999,2]
[393473989,1762704649191,-300.0,0.00017999,2]
[393473990,1762704649201,-300.0,0.00017999,2]
[393473991,1762704649212,-2593043.2427105,0.00018,2]
[393473992,1762704649221,-250.0,0.00018,2]
[393473993,1762704649230,-250.0,0.00018,2]
[393473994,1762704649240,-250.0,0.00018,2]
[393473995,1762704649249,-250.0,0.00018,2]
[393473996,1762704649259,-250.0,0.00018,2]
[393473997,1762704649272,-250.0,0.00018,2]
[393473998,1762704649282,-250.0,0.00018,2]
[393473999,1762704649294,-250.0,0.00018,2]
[393474000,1762704649304,-250.0,0.00018,2]
[393474001,1762704649314,-250.0,0.00018,2]
[393474002,1762704649323,-250.0,0.00018,2]
[393474003,1762704649335,-250.0,0.00018,2]
[393474004,1762704649344,-250.0,0.00018,2]
[393474005,1762704649353,-250.0,0.00018,2]
[393474006,1762704649362,-250.0,0.00018,2]
[393474007,1762704649371,-250.0,0.00018,2]
[393474008,1762704649381,-250.0,0.00018,2]
[393474009,1762704649390,-250.0,0.00018,2]
[393474010,1762704649399,-250.0,0.00018,2]
[393474011,1762704649408,-250.0,0.00018,2]
[393474012,1762704649418,-250.0,0.00018,2]
[393474013,1762704649430,-250.0,0.00018,2]
[393474014,1762704649440,-250.0,0.00018,2]
[393474015,1762704649449,-250.0,0.00018,2]
[393474016,1762704649459,-250.0,0.00018,2]
[393474017,1762704649468,-250.0,0.00018,2]
[393474018,1762704649478,-250.0,0.00018,2]
[393474019,1762704649488,-281.4,0.00018,2]
[393474020,1762704649498,-926776.58975577,0.00018,2]
[393474021,1762704649981,-151.0,0.00017878,2]
[393474022,1762704649990,-4825.23277107,0.00018,2]
[393474023,1762704650003,-820.72916712,0.00018,2]
[393474024,1762704650046,-12804.59437614,0.00018,2]
[393474025,1762704650058,-49108.47583493,0.00018,2]
[393474026,1762704650719,-151.0,0.00017792,2]
[393474027,1762704650729,-1026.870505,0.00017792,2]
[393474028,1762704650739,-151.0,0.000179,2]
[393474029,1762704650748,-433.17949496,0.000179,2]
[393474030,1762704650760,-593.69101004,0.000179,2]
[393474031,1762704650770,-1026.870505,0.00017941,2]
[393474032,1762704650779,-151.0,0.00017941,2]
[393474033,1762704650789,-932.69018537,0.00017962,2]
[393474034,1762704650801,-94.18031963,0.00017962,2]
[393474035,1762704650810,-244.222973,0.00017962,2]
[393474036,1762704650819,-2204.56701889,0.00018,2]
[393474037,1762704650831,-16419.80863721,0.00018,2]
[393474038,1762704650842,-2987.2,0.00018,2]
[393474039,1762704650854,-300.35996914,0.00018,2]
[393474040,1762704650865,-43757.1468877,0.00018,2]
[393474041,1762704650876,-935.51467483,0.00018,2]
[393474042,1762704650888,-3939.85565598,0.00018,2]
[393474043,1762704650904,-252.636388,0.00017878,2]
[393474044,1762704650916,-774.234117,0.00017878,2]
[393474045,1762704650926,-9941.46955835,0.00018,2]
[393474046,1762704651735,-1.7e-07,0.00018,2]
[393474047,1762704652139,-891.15,0.000179,2]
[393474048,1762704652151,-135.720505,0.000179,2]
[393474049,1762704652160,-1026.870505,0.00017941,2]
[393474050,1762704652170,-1026.870499,0.00017962,2]
[393474051,1762704652179,-9506.04946294,0.00018,2]
[393474052,1762704652616,-6504.76659109,0.00018,2]
[393474053,1762704652627,-389.40959693,0.00018,2]
[393474054,1762704652638,-10682.82479664,0.00018,2]
[393474055,1762704652692,-267365.69858033,0.00018,2]
[393474056,1762704652844,-1265.55639731,0.00018,2]
[393474057,1762704652893,-9811.55395495,0.00018,2]
[393474060,1762704719844,150.0,0.00017128,120]
[393474183,1762705362120,877.89,0.00013699,2]
[393474186,1762705613587,5000.00926401,0.000162,5]
[393474210,1762705832227,-346.8136616,0.00015967,2]
[393474211,1762705832241,-782.1463384,0.00015967,2]
[393474212,1762705832252,-17.76726465,0.00015974,2]
[393474213,1762705832265,-293.48084307,0.00015974,2]
[393474214,1762705832278,-903.0,0.00015974,2]
[393474215,1762705832362,-869.64189228,0.00015974,2]
[393474216,1762705832372,-175.40842314,0.00016372,2]
[393474217,1762705832395,-2730.94,0.00016456,2]
[393474218,1762705832406,-1200.0,0.00016471,2]
[393474219,1762705832420,-300.0,0.00016471,2]
[393474220,1762705832433,-1200.0,0.00016472,2]
[393474221,1762705832444,-7092.75584573,0.00016473,2]
[393474222,1762705832454,-550.0,0.00016534,2]
[393474223,1762705832465,-1000.0,0.00016534,2]
[393474224,1762705832477,-500.0,0.00016535,2]
[393474225,1762705832488,-500.0,0.00016535,2]
[393474226,1762705832499,-170.77880584,0.00016535,2]
[393474227,1762705832509,-500.0,0.00016535,2]
[393474228,1762705832518,-288.1342357,0.00016535,2]
[393474229,1762705832528,-500.0,0.00016535,2]
[393474230,1762705832538,-500.0,0.00016535,2]
[393474231,1762705832549,-579.01285521,0.00016535,2]
[393474232,1762705832559,-500.0,0.00016535,2]
[393474233,1762705832569,-500.0,0.00016535,2]
[393474234,1762705832578,-500.0,0.00016535,2]
[393474235,1762705832588,-543.13096583,0.00016535,2]
[393474236,1762705832597,-500.0,0.00016535,2]
[393474237,1762705832607,-500.0,0.00016535,2]
[393474238,1762705832617,-500.0,0.00016535,2]
[393474239,1762705832627,-500.0,0.00016535,2]
[393474240,1762705832638,-500.0,0.00016535,2]
[393474241,1762705832651,-500.0,0.00016535,2]
[393474242,1762705832660,-500.0,0.00016535,2]
[393474243,1762705832669,-500.0,0.00016535,2]
[393474244,1762705832679,-500.0,0.00016535,2]
[393474245,1762705832689,-500.0,0.00016535,2]
[393474246,1762705832699,-500.0,0.00016535,2]
[393474247,1762705832708,-500.0,0.00016535,2]
[393474249,1762705832721,-500.0,0.00016535,2]
[393474250,1762705832734,-150.0,0.00016535,2]
[393474252,1762705832743,-500.0,0.00016535,2]
[393474253,1762705832754,-500.0,0.00016535,2]
[393474254,1762705832763,-500.0,0.00016535,2]
[393474255,1762705832775,-400.08313203,0.00016535,2]
[393474256,1762705832787,-500.0,0.00016535,2]
[393474257,1762705832796,-500.0,0.00016535,2]
[393474258,1762705832806,-500.0,0.00016535,2]
[393474259,1762705832815,-500.0,0.00016535,2]
[393474260,1762705832825,-500.0,0.00016535,2]
[393474261,1762705832835,-500.0,0.00016535,2]
[393474262,1762705832845,-500.0,0.00016535,2]
[393474263,1762705832855,-500.0,0.00016535,2]
[393474264,1762705832865,-500.0,0.00016535,2]
[393474265,1762705832875,-500.0,0.00016535,2]
[393474266,1762705832885,-500.0,0.00016535,2]
[393474267,1762705832895,-500.0,0.00016535,2]
[393474268,1762705832905,-500.0,0.00016535,2]
[393474269,1762705832914,-500.0,0.00016535,2]
[393474270,1762705832924,-500.0,0.00016535,2]
[393474271,1762705832934,-500.0,0.00016535,2]
[393474272,1762705832944,-500.0,0.00016535,2]
[393474273,1762705832953,-500.0,0.00016535,2]
[393474274,1762705832962,-500.0,0.00016535,2]
[393474275,1762705832971,-500.0,0.00016535,2]
[393474276,1762705832981,-500.0,0.00016535,2]
[393474277,1762705832991,-500.0,0.00016535,2]
[393474278,1762705833000,-500.0,0.00016535,2]
[393474279,1762705833011,-500.0,0.00016535,2]
[393474280,1762705833020,-500.0,0.00016535,2]
[393474281,1762705833031,-500.0,0.00016535,2]
[393474282,1762705833041,-389.1831273,0.00016535,2]
[393474283,1762705833051,-500.0,0.00016535,2]
[393474284,1762705833060,-500.0,0.00016535,2]
[393474285,1762705833072,-371.71221694,0.00016535,2]
[393474286,1762705833085,-128.28778306,0.00016535,2]
[393474287,1762705833096,-500.0,0.00016535,2]
[393474288,1762705833105,-500.0,0.00016535,2]
[393474289,1762705833115,-500.0,0.00016535,2]
[393474290,1762705833125,-500.0,0.00016535,2]
[393474291,1762705833135,-500.0,0.00016535,2]
[393474292,1762705833145,-500.0,0.00016535,2]
[393474293,1762705833155,-550.0,0.00016535,2]
[393474294,1762705833165,-500.0,0.00016535,2]
[393474295,1762705833174,-500.0,0.00016535,2]
[393474296,1762705833185,-500.0,0.00016535,2]
[393474297,1762705833196,-500.0,0.00016535,2]
[393474298,1762705833206,-500.0,0.00016535,2]
[393474299,1762705833218,-514.66055723,0.00016537,2]
[393474300,1762705833230,-151.0,0.00016537,2]
[393474301,1762705833241,-151.0,0.00016537,2]
[393474302,1762705833253,-151.0,0.00016537,2]
[393474303,1762705833264,-126.85165973,0.00016537,2]
[393474304,1762705833278,-24.14834027,0.00016537,2]
[393474305,1762705833288,-151.0,0.00016537,2]
[393474306,1762705833299,-151.0,0.00016537,2]
[393474307,1762705833309,-148.05459473,0.00016537,2]
[393474308,1762705833328,-2.94540527,0.00016537,2]
[393474309,1762705833338,-151.0,0.00016537,2]
[393474310,1762705833348,-151.0,0.00016537,2]
[393474311,1762705833358,-151.0,0.00016537,2]
[393474312,1762705833375,-151.0,0.00016537,2]
[393474313,1762705833386,-23.36459473,0.00016537,2]
[393474314,1762705833421,-127.63540527,0.00016537,2]
[393474315,1762705833432,-151.0,0.00016537,2]
[393474316,1762705833442,-151.0,0.00016537,2]
[393474317,1762705833453,-151.0,0.00016537,2]
[393474318,1762705833463,-151.0,0.00016537,2]
[393474319,1762705833475,-151.0,0.00016537,2]
[393474320,1762705833485,-151.0,0.00016537,2]
[393474321,1762705833495,-151.0,0.00016537,2]
[393474322,1762705833507,-151.0,0.00016537,2]
[393474323,1762705833518,-151.0,0.00016537,2]
[393474324,1762705833529,-151.0,0.00016537,2]
[393474325,1762705833540,-151.0,0.00016537,2]
[393474326,1762705833552,-151.0,0.00016537,2]
[393474327,1762705833562,-151.0,0.00016537,2]
[393474328,1762705833573,-151.0,0.00016537,2]
[393474329,1762705833583,-585.31,0.00016538,2]
[393474330,1762705833594,-176.81652019,0.00016546,2]
[393474331,1762705833604,-331.5844456,0.00016546,2]
[393474332,1762705833614,-197.0670794,0.00016546,2]
[393474333,1762705833626,-500.0,0.00016546,2]
[393474334,1762705833635,-2828.87297353,0.00016547,2]
[393474335,1762705833651,-2237.07352637,0.00016547,2]
[393474336,1762705833663,-908.74756444,0.00016547,2]
[393474337,1762705833676,-533.7134,0.00016547,2]
[393474338,1762705833688,-56333.59830891,0.00016547,2]
[393474339,1762705833700,-681.0,0.00016547,2]
[393474340,1762705833711,-3673.29706504,0.00016547,2]
[393474341,1762705833840,-721.8525764,0.00016547,2]
[393474342,1762705834054,-3283.16954773,0.00016547,2]
[393474352,1762705838435,-78369.32533758,0.00016547,2]
[393474354,1762705838454,-500.0,0.00016573,2]
[393474356,1762705838464,-500.86745626,0.00016573,2]
[393474358,1762705838474,-500.0,0.00016573,2]
[393474360,1762705838485,-500.0,0.00016573,2]
[393474362,1762705838496,-500.0,0.00016573,2]
[393474364,1762705838506,-500.0,0.00016573,2]
[393474366,1762705838517,-500.0,0.00016573,2]
[393474368,1762705838528,-500.0,0.00016573,2]
[393474370,1762705838540,-500.0,0.00016573,2]
[393474372,1762705838550,-500.0,0.00016573,2]
[393474374,1762705838560,-500.0,0.00016573,2]
[393474376,1762705838572,-500.0,0.00016573,2]
[393474378,1762705838586,-500.0,0.00016573,2]
[393474380,1762705838597,-500.0,0.00016573,2]
[393474382,1762705838608,-500.0,0.00016573,2]
[393474384,1762705838619,-500.0,0.00016573,2]
[393474385,1762705838629,-500.0,0.00016573,2]
[393474386,1762705838641,-500.0,0.00016573,2]
[393474387,1762705838653,-500.0,0.00016573,2]
[393474388,1762705838664,-500.0,0.00016573,2]
[393474389,1762705838674,-647.04253758,0.00016573,2]
[393474390,1762705838686,-7092.75584572,0.00016632,2]
[393474391,1762705838696,-7092.75584572,0.0001679,2]
[393474392,1762705838705,-585.31,0.00016812,2]
[393474393,1762705838716,-7092.75584572,0.00016949,2]
[393474394,1762705838728,-150.0,0.00016978,2]
[393474395,1762705838739,-999.0,0.00016998,3]
[393474397,1762705838749,-250.0,0.00017,2]
[393474399,1762705838758,-470.94702833,0.00017,2]
[393474401,1762705838768,-160.0,0.00017,2]
[393474402,1762705838779,-157.99,0.00017008,2]
[393474405,1762705838790,-150.0,0.00017029,2]
[393474407,1762705838805,-585.31,0.00017085,2]
[393474409,1762705838814,-7092.75584572,0.00017107,2]
[393474411,1762705838825,-200.0,0.00017111,2]
[393474413,1762705838835,-150.0,0.00017128,2]
[393474415,1762705838845,-4305.0,0.00017147,2]
[393474417,1762705838856,-1151.0,0.00017153,2]
[393474419,1762705838865,-208.89,0.00017156,2]
[393474421,1762705838876,-1151.0,0.0001725,2]
[393474423,1762705838885,-2175.0,0.00017253,2]
[393474425,1762705838896,-2175.0,0.00017263,2]
[393474427,1762705838905,-7092.75584572,0.00017266,2]
[393474428,1762705838915,-1151.0,0.0001731,2]
[393474430,1762705838926,-3298.0,0.00017346,2]
[393474432,1762705838936,-2175.0,0.00017347,2]
[393474435,1762705838947,-585.31,0.00017359,2]
[393474436,1762705838958,-549.32,0.0001736,2]
[393474438,1762705838968,-549.32,0.0001736,2]
[393474440,1762705838979,-549.32,0.0001736,2]
[393474442,1762705838989,-399.05111215,0.0001736,2]
[393474445,1762705839004,-150.26888785,0.0001736,2]
[393474447,1762705839014,-549.32,0.0001736,2]
[393474449,1762705839024,-901.91101215,0.0001736,2]
[393474451,1762705839037,-195.76898785,0.0001736,2]
[393474453,1762705839047,-549.32,0.0001736,2]
[393474455,1762705839058,-549.32,0.0001736,2]
[393474457,1762705839068,-549.32,0.0001736,2]
[393474459,1762705839078,-549.32,0.0001736,2]
[393474461,1762705839088,-549.32,0.0001736,2]
[393474463,1762705839098,-549.32,0.0001736,2]
[393474465,1762705839107,-549.43,0.0001736,2]
[393474467,1762705839117,-152.56,0.00017398,2]
[393474469,1762705839127,-150.0,0.00017398,2]
[393474471,1762705839137,-9.92545399,0.00017398,2]
[393474474,1762705839149,-140.07454601,0.00017398,2]
[393474476,1762705839160,-2175.0,0.00017406,2]
[393474477,1762705839170,-7092.75584572,0.00017424,2]
[393474479,1762705839180,-1151.0,0.00017449,2]
[393474481,1762705839190,-150.0,0.00017478,2]
[393474484,1762705839200,-269.33,0.00017478,2]
[393474485,1762705839210,-2000.0,0.000175,2]
[393474487,1762705839220,-500.0,0.000175,2]
[393474489,1762705839231,-969.03265341,0.00017523,2]
[393474491,1762705839244,-181.96734659,0.00017523,2]
[393474493,1762705839254,-77.33265341,0.00017546,2]
[393474496,1762705839266,-89.32734659,0.00017546,2]
[393474497,1762705839276,-7092.75584572,0.00017583,2]
[393474499,1762705839287,-1151.0,0.00017602,2]
[393474501,1762705839297,-1151.0,0.0001762,2]
[393474503,1762705839307,-585.31,0.00017633,2]
[393474505,1762705839317,-935.0,0.00017642,2]